Cogmind - Beta 13 @@@ ROGUE MODE // 2024.04.15 @ 23:18:10 Player: Thaleia Result: Self-destructed Performance ------------- Evolutions (1) 500 Regions Visited (3) 600 Robots Destroyed (25) 125 Value Destroyed (516) 516 Prototype IDs (0) 0 Alien Tech Used (0) 0 Bonus (0) 0 TOTAL SCORE: 1741 Bonus ------- None Cogmind --------- Core Integrity 320/400 Matter 209/300 Energy 100/100 System Corruption 0% Temperature Cool (0) Movement Core (300) Ox5 Location -9/Materials Parts ------- > --- POWER (1) -------- (None) > --- PROPULSION (3) --- (None) > --- UTILITY (3) ------ Heat Sink Small Storage Unit Hardened Light Armor Plating > --- WEAPON (2) ------- Autogun Grenade Launcher > --- INVENTORY (8) ---- Light Ion Engine Light Ion Engine Heat Sink EM Pulse Gun Medium Laser Light Assault Rifle Light Assault Rifle Slug Cannon Peak State ------------ > --- POWER ------------ Light Ion Engine > --- PROPULSION ------- (None) > --- UTILITY ---------- Heat Sink Small Storage Unit Hardened Light Armor Plating > --- WEAPON ----------- Autogun Slug Cannon > --- INVENTORY -------- Light Ion Engine Light Ion Engine Heat Sink EM Pulse Gun Medium Laser Light Assault Rifle Light Assault Rifle Grenade Launcher [Rating: 11] Favorites ----------- Power Light Ion Engine Engine Light Ion Engine Power Core Light Nuclear Core Propulsion Light Treads Treads Light Treads Utility Small Storage Unit Device Heat Sink Storage Small Storage Unit Protection Hardened Light Armor Plating Weapon Light Assault Rifle Energy Gun Medium Laser Ballistic Gun Light Assault Rifle Ballistic Cannon Slug Cannon Launcher Grenade Launcher Build | -11 -10 -10 -9 ------- Run | Yrd Mat Min Mat Slots Evolved 2 | . . . 2 Power . | . . . . Propulsion 1 | . . . 1 Utility 1 | . . . 1 Weapon . | . . . . Parts Attached 23 | 7 . 12 4 Power 6 | 2 . 4 . Engine 5 | 2 . 3 . Core 1 | . . 1 . Reactor . | . . . . Propulsion 2 | 2 . . . Treads 2 | 2 . . . Leg . | . . . . Wheel . | . . . . Hover . | . . . . Flight . | . . . . Utility 4 | 1 . 1 2 Device 2 | . . 1 1 Storage 1 | 1 . . . Processor . | . . . . Hackware . | . . . . Protection 1 | . . . 1 Artifact . | . . . . Weapon 11 | 2 . 7 2 Energy Gun 1 | 1 . . . Energy Cannon . | . . . . Ballistic Gun 8 | 1 . 6 1 Ballistic Cannon 1 | . . 1 . Launcher 1 | . . . 1 Special Weapon . | . . . . Impact Weapon . | . . . . Slashing Weapon . | . . . . Piercing Weapon . | . . . . Special Melee Weapon . | . . . . Unidentified Prototypes . | . . . . Parts Lost 4 | . . 3 1 Power 1 | . . . 1 Propulsion 2 | . . 2 . Utility 1 | . . 1 . Weapon . | . . . . Highest Loss Streak 2 | . . 2 1 To Critical Strikes . | . . . . Average Slot Usage (%) 74 | . 85 77 51 Engine 10 | . 14 10 6 Core 2 | . . 3 . Treads 14 | . 28 16 . Device 4 | . . 4 6 Storage 13 | . 14 14 11 Protection 1 | . . . 6 Energy Gun 6 | . 14 6 . Ballistic Gun 13 | . 14 13 11 Ballistic Cannon 6 | . . 7 6 Naked Turns . | . . . . Heaviest Build 24 | 13 13 16 24 Greatest Support 40 | 40 40 40 3 Greatest Overweight (x) 7 | . . 5 7 Average Overweight (x) 1 | . . 1 5 Largest Inventory Capacity 8 | 8 8 8 8 Average Capacity 7 | 7 8 8 8 Most Carried 8 | 1 3 8 8 Average Carried 5 | . 2 6 8 Final Capacity 8 | 8 8 8 8 Final Carried 8 | 1 3 8 8 Class Distribution -------------------- 100% | Mutant Dominant Class ---------------- Mutant | -10/Materials Mutant | -10/Mines Mutant | -9/Materials Resources | -11 -10 -10 -9 ----------- Run | Yrd Mat Min Mat Matter Collected 567 | 169 106 243 49 Remotely . | . . . . Salvage Created 511 | . 94 359 58 Parts 39 | . 6 26 7 Haulers Intercepted . | . . . . Recyclers Shooed 1 | . . 1 . Parts Field Recycled . | . . . . Retrieved Matter . | . . . . Parts Self-Destructed . | . . . . Prevented . | . . . . Kills | -11 -10 -10 -9 ------- Run | Yrd Mat Min Mat Combat Hostiles Destroyed 24 | . 2 17 5 Guns 15 | . 2 11 2 Cannons 6 | . . 6 . AOE 3 | . . . 3 Classes Destroyed 3 | . 1 2 . Worker 1 | . . 1 . Swarmer 15 | . . 11 4 Grunt 9 | . 2 6 1 Best Kill Streak 4 | . 2 3 4 Combat Bots Only 4 | . 2 3 4 Max Kills in Single Turn 2 | . 1 1 2 Gunslinging . | . . . . Exploded 2 | . . . 2 Melee . | . . . . Uniques/NPCs Destroyed . | . . . . Combat | -11 -10 -10 -9 -------- Run | Yrd Mat Min Mat Hostile Shots Fired 138 | . 9 96 33 Missed 33 | . 5 22 6 Damage Taken 1085 | . 71 764 250 Core 214 | . 36 98 80 Absorbed by Shields . | . . . . Core Remaining (%) 73 | 100 . 46 . Volleys Fired 69 | . 5 53 11 Largest 2 | . 2 2 2 Hottest 71 | . 70 70 71 Shots Fired 128 | . 10 103 15 Gun 103 | . 10 82 11 Cannon 23 | . . 21 2 Launcher 2 | . . . 2 Special . | . . . . Kinetic 89 | . 5 71 13 Thermal 37 | . 5 32 . Explosive 2 | . . . 2 Electromagnetic . | . . . . Robot Hit Streak 17 | . 4 17 4 Robot Miss Streak 3 | . 1 3 1 Penetration Max . | . . . . Secondary Targets 1 | . . 1 . Max Gunslinging Chain 1 | . . 1 . Shots Hit Robots 81 | . 8 66 7 Core Hits 36 | . 4 27 5 Critical Kills 3 | . . 3 . Critical Parts Destroyed 2 | . . 2 . Critical Strikes 7 | . . 7 . Burn 2 | . . 2 . Destroy 5 | . . 5 . Melee Attacks . | . . . . Impact . | . . . . Slashing . | . . . . Piercing . | . . . . Sneak Attacks . | . . . . Combat Hostiles . | . . . . Follow-up Attacks . | . . . . Damage Inflicted 1249 | . 84 847 318 Guns 728 | . 82 550 96 Cannons 291 | . . 291 . Explosions 222 | . . . 222 Melee . | . . . . Ramming 8 | . 2 6 . Kinetic 670 | . 32 542 96 Thermal 349 | . 50 299 . Explosive 222 | . . . 222 Electromagnetic . | . . . . Impact . | . . . . Slashing . | . . . . Piercing . | . . . . Highest Corruption . | . . . . Average Corruption . | . . . . Corruption Purged . | . . . . Corruption Blocked . | . . . . Overload Shots . | . . . . Overflow Damage 43 | . . 38 5 Projectiles 38 | . . 38 . Explosions 5 | . . . 5 Melee . | . . . . Knockbacks 1 | . . 1 . Impact . | . . . . Kinetic 1 | . . 1 . Secondary . | . . . . Self-Inflicted Damage 22 | . . . 22 Shots 1 | . . . 1 Rammed 5 | . 1 4 . Targets Rammed 6 | . 1 5 . Kicked . | . . . . Crushed 1 | . . 1 . Highest Temperature 218 | . 114 218 31 Average Temperature 49 | . 59 49 18 Received Heat Transfer 306 | . 24 252 30 Siege Activations . | . . . . Robots Corrupted . | . . . . Combat Hostiles . | . . . . Parts Fried . | . . . . Impact Corruptions . | . . . . Robots Melted . | . . . . Combat Hostiles . | . . . . Parts Melted 2 | . . 2 . Heat Transferred 1184 | . 148 1036 . Parts Sabotaged . | . . . . Parts Stolen . | . . . . Parts Stripped . | . . . . Power Chain Reactions . | . . . . Alert | -11 -10 -10 -9 ------- Run | Yrd Mat Min Mat Peak Influence 329 | . 50 329 239 Initial 98 | . . 19 98 Average 127 | . 18 155 135 Maximum Alert Level 1 | . . 1 1 Low Security (%) 72 | 100 100 62 81 Level 1 27 | . . 37 18 Level 2 . | . . . . Level 3 . | . . . . Level 4 . | . . . . Level 5 . | . . . . High Security . | . . . . Max Security . | . . . . Squads Dispatched 5 | . 3 . 2 Investigation 1 | . 1 . . Extermination . | . . . . Reinforcement 4 | . 2 . 2 Assault . | . . . . Garrison . | . . . . Intercept . | . . . . Searches Triggered . | . . . . Construction Impeded . | . . . . Haulers Reinforced . | . . . . Active Scanning Responses . | . . . . Cargo Convoy Interrupts . | . . . . Stealth | -11 -10 -10 -9 --------- Run | Yrd Mat Min Mat Distress Signals 1 | . 1 . . Communications Jammed . | . . . . Distress Signals . | . . . . Times Spotted 41 | . 8 27 6 Peak Tracking Total 6 | . 5 6 4 Tactical Retreats 7 | . . 7 . Traps | -11 -10 -10 -9 ------- Run | Yrd Mat Min Mat Traps Triggered 2 | . 2 . . Indirectly . | . . . . Trap Hack Attempts . | . . . . Triggered . | . . . . Disarmed . | . . . . Reprogrammed . | . . . . Reused . | . . . . Traps Extracted . | . . . . Installed . | . . . . Triggered . | . . . . Machines | -11 -10 -10 -9 ---------- Run | Yrd Mat Min Mat Machines Disabled 2 | . . 2 . Max in Single Turn 1 | . . 1 . Machines Repaired . | . . . . Machines Dismantled . | . . . . Machines Sabotaged . | . . . . Overloaded Fab Kills . | . . . . Hacking | -11 -10 -10 -9 --------- Run | Yrd Mat Min Mat Machines Accessed 1 | . . . 1 Terminals 1 | . . . 1 Fabricators . | . . . . Repair Stations . | . . . . Recycling Units . | . . . . Scanalyzers . | . . . . Garrison Access . | . . . . Total Hacks 5 | . . . 5 Successful 4 | . . . 4 Failed 1 | . . . 1 Catastrophic . | . . . . Database Lockouts . | . . . . Manual 1 | . . . 1 Terminals 5 | . . . 5 Fabricators . | . . . . Repair Stations . | . . . . Recycling Units . | . . . . Scanalyzers . | . . . . Garrison Access . | . . . . Terminal Hacks 4 | . . . 4 Emergency Access Points 1 | . . . 1 Alert Level 2 | . . . 2 Unreport Threat 1 | . . . 1 Fabricator Hacks . | . . . . Repair Station Hacks . | . . . . Recycling Unit Hacks . | . . . . Scanalyzer . | . . . . Garrison Access Hacks . | . . . . Unauthorized Hacks . | . . . . Terminals . | . . . . Fabricators . | . . . . Repair Stations . | . . . . Recycling Units . | . . . . Scanalyzers . | . . . . Garrison Access . | . . . . Data Cores Recovered . | . . . . Used . | . . . . Hacking Detections 1 | . . . 1 Full Trace Events . | . . . . Feedback Events . | . . . . Feedback Blocked . | . . . . Robot Schematics Acquired . | . . . . Robots Built . | . . . . Authchips . | . . . . Time . | . . . . Total Robot Build Rating . | . . . . Part Schematics Acquired . | . . . . Parts Built . | . . . . Authchips . | . . . . Time . | . . . . Total Part Build Rating . | . . . . Parts Repaired . | . . . . Time . | . . . . Parts Recycled . | . . . . Recycled Matter . | . . . . Retrieved Matter . | . . . . Retrieved Components . | . . . . Parts Scanalyzed . | . . . . Part Schematics Acquired . | . . . . Parts Damaged . | . . . . Bothacking | -11 -10 -10 -9 ------------ Run | Yrd Mat Min Mat Used RIF Installer . | . . . . Robots Hacked . | . . . . Non-combat . | . . . . Combat . | . . . . Robot Hacks Applied . | . . . . Relay Couplers Released . | . . . . Fabnet Peak Effective % . | . . . . Robots Rewired . | . . . . Allies Hacked . | . . . . Hacks Repelled . | . . . . Allies | -11 -10 -10 -9 -------- Run | Yrd Mat Min Mat Total Allies . | . . . . Largest Group . | . . . . Highest-Rated Group . | . . . . Highest-Rated Ally . | . . . . Total Orders . | . . . . Ally Attacks . | . . . . Total Damage . | . . . . Kills . | . . . . Allies Corrupted . | . . . . Allies Melted . | . . . . Intel | -11 -10 -10 -9 ------- Run | Yrd Mat Min Mat Robot Analysis Total . | . . . . Derelict Logs Recovered 2 | . . 2 . Drone Launches . | . . . . Drone Recoveries . | . . . . Exploration | -11 -10 -10 -9 ------------- Run | Yrd Mat Min Mat Turns Passed 2294 | 116 280 1499 399 Spaces Moved 963 | 75 159 612 117 Core 327 | 16 . 194 117 Treads 636 | 59 159 418 . Legs . | . . . . Wheels . | . . . . Hover . | . . . . Flight . | . . . . Fastest Speed 50 | 50 160 160 300 Average Speed 204 | 136 160 204 311 Slowest Speed 400 | 160 160 300 400 Overloaded Moves . | . . . . Propulsion Burnouts . | . . . . Robots Hopped . | . . . . Cave-ins Triggered . | . . . . Exploration Rate (%) 30 | 6 24 81 10 Regions Visited 3 Branch Regions 1 Pre-discovered Areas 2 | . . 2 . Known Exits Taken . | . . . . Unknown Exits Taken 3 | 1 1 1 . Scrap Searched 3 | . . 3 . Spaces Dug . | . . . . Terrain Destroyed 26 | . . 9 17 Melee . | . . . . Projectile 10 | . . 9 1 AOE 16 | . . . 16 Terrain Rammed . | . . . . Walls Destroyed . | . . . . Machines Disabled . | . . . . Actions | -11 -10 -10 -9 --------- Run | Yrd Mat Min Mat Total 1161 | 85 175 764 137 Wait 88 | 3 9 72 4 Move 960 | 74 158 611 117 Hop . | . . . . Pick Up 7 | 1 2 4 . Fast Attach 9 | 6 . 1 2 Attach 2 | . . 2 . Detach 1 | . . 1 . Swap 12 | 1 . 9 2 Drop 7 | . . 6 1 Fire 69 | . 5 53 11 Melee . | . . . . Ram 1 | . . 1 . Kick . | . . . . Crush 5 | . 1 4 . Escape Stasis . | . . . . Rewire . | . . . . Trap . | . . . . Miscellaneous . | . . . . Route ------- -11/Scrapyard -10/Materials -10/Mines -9/Materials History --------- Turn | Location | Event 10 | -11/Scrapyard | Discovered new exit (range 15) 117 | -11/Scrapyard | Entered Materials 308 | -10/Materials | Build established: Mutant 387 | -10/Materials | Discovered new exit (range 6) 397 | -10/Materials | Entered Mines 589 | -10/Mines | Discovered new exit (range 8) 1086 | -10/Mines | A weapon hastily lodged in a ceiling crevice suddenly fell to the ground 1272 | -10/Mines | Core integrity fell below 50% 1896 | -10/Mines | Entered Materials 1896 | -9/Materials | Evolved 2 slots: Propulsion x1, Utility x1 2295 | -9/Materials | Self-destructed Last Messages --------------- (64,73) (46,79) (76,86) (44,79) (64,64) Map updated. >>Alert(Check) Current Alert Level: 1-F 02196_ Connecting with Terminal... >>Alert(Purge) Purged threat record, alert level lowered. >>Alert(Check) Current Alert Level: Low Security 02293_ O-16 Technician: "IFF HANDSHAKE FAILED. SECURING TERMINAL." 02293_ O-16 Technician uses terminal to summon reinforcements. 02293_ ALERT: Hostiles spotted, dispatching reinforcements to Terminal M001. 02293_ O-16 Technician locks terminal. Map ----- +----------------------------------------------------+ | ?????????????????????????????????????????????????? | | ?????????????????????????????????????????????????? | | ?????????????????????????????????????????????????? | | ?????????????????????????????????????????????????? | | ?????????????????????????????????????????????????? | | ?????????????????????????????????????????????????? | | ?????????????????????????????????????????????????? | | ?????????????????????????????????????????????????? | | ?????????????????????????????????????????????????? | | ?????????????????????????????????????????????????? | | ?????????????????????????????????????????????????? | | ?????????????????????????????????????????????????? | | ?????????????????????????????????????????????????? | | ?????????????????????????????????????????????????? | | ?????????????????????????????????????????????????? | | ?????????????????????????????????????????????????? | | ?????????????????????????????????????????????????? | | ???????????????????????###+#?????????????????????? | | ??????????????????????? #?????????????????????? | | ???????????????????""""" #?????????????????????? | | ?????????????????? ""T"" #?????????????????????? | | ?????????????????? #?????????????????????? | | ?????????????????? """o""" #?????????????????????? | | ?????????????????# """ """ #?????????????????????? | | ?????????????????# """ """ #?????????????????????? | | ?????????????????# @ #?????????????????????? | | ?????????????????########/##?????????????????????? | | ????????????????????????# #??????????????????????? | | ????????????????????????# #??????????????????????? | | ????????????????????????# #??????????????????????? | | ????????????????????????# #??????????????????????? | | ????????????????????????# #??????????????????????? | | ????????????????????????# #??????????????????????? | | ????????????????????????# #??????????????????????? | | ????????????????????????# #??????????????????????? | | ??????????????????????###+####???????????????????? | | ??????????????????????# #???????????????????? | | ??????????????????????# #???????????????????? | | ????????????????####### """#???????????????????? | | ????????????????# # """#???????????????????? | | ??????????????### # / """#???????????????????? | | ?????+?+??????+ + #???????????????????? | | ??????????????### ########???????????????????? | | ????????????????# #????###########???????????? | | ????????????????### #####??# #???????????? | | ??????????????????# #"""#??# ########????? | | ????????##+######## #"T"#### #[ #????? | | ??????+ = ## # """ #????? | | ??????# "# + """ #????? | | ??????# """ """ """ T# # """ #????? | +----------------------------------------------------+ Best States ------------- Heat Dissipation 38 Energy Generation 14 Energy Capacity 250 Matter Stores 300 Matter Capacity 300 Sight Range 16 Terrain Scan Density 10 Armor Coverage 150 Evasion (%) 40 Recoil Reduction 2 Item Schematics ----------------- None Robot Schematics ------------------ None Fabricated ------------ Nothing Alien Tech Used ----------------- None Achievements -------------- None Challenges ------------ None Game ------ Seed CoolingCobblerInterrupter Manual? 0 Play Time 00:10:55 Cumulative 8.1 hours Start 2024.04.15 @ 23:08:43 End 2024.04.15 @ 23:18:10 Sessions 1 Manual Loads 0 Difficulty Rogue Special Mode None Game No. 24 Rogue 24 Adventurer 0 Explorer 0 Win Type - Total 0 Types 0/0/0/0/0/0/0/0/0 Lore% 7 Gallery% 11 Achievement% 11 Wizard Run 0 Options --------- Layout 1 ASCII 0 Keyboard 1 Movement Arrows Keybinds 0 Fullscreen 1 Font 32/Tamsyn Map View 50x40 Zoom Use 0% Tactical HUD 1 Map Filters NONE Filters NONE Steam 0 RUN: 2a5e794f-fce0-4e9b-b60f-5d1918373390